{"text_format":"1","workbook":"xlsx","n_sheets":4,"sheets":["Programi","Investicije","EU projekti","Obrtna sredstva"],"not_rendered":{"charts":0,"images":2,"macros":1,"external_links":0,"defined_names":4,"comments":0,"pivot_tables":0},"unopened":[],"bounds":{"document_bytes":16777216,"sheet_cells":100000,"rows_first":2000,"rows_last":500,"rows_between":2000,"halvings":0,"cell_chars":16384,"cell_head_chars":4096},"cells_cut":0,"cells_raw":0,"read":"whole","date_system":"1900"}

{"sheet":"Programi","index":0,"n_rows":19,"n_cols":9,"rows_kept":19,"cut":false,"hidden":false,"merged":[[13,8,13,12],[18,8,18,12],[4,1,4,6],[5,2,5,6],[6,2,6,6],[7,2,7,6],[8,8,9,12],[5,8,5,12],[8,2,8,6],[12,1,15,6],[9,2,9,6],[17,1,17,5]]}
[]
[]
[]
[null,"Vrsta i popis programa:",null,null,null,null,null,"Ovisno o vrsti programa, popunjavaju se tablice:"]
[null,"Investicijski kredit",null,null,null,null,null,"Klik na ikonu za početak"]
[null,null,"• Energetska obnova zgrada",null,null,null,null,null,"Podaci o ulaganju - Investicijski kredit"]
[null,null,"• Gospodarstvo"]
[null,null,"• Infrastruktura"]
[null,null,"• Turizam"]
[null,null,"• Zaštita okoliša"]
[]
[]
[null,"Izrade projektne i ostale investicijske dokumentacije",null,null,null,null,null,"Klik na ikonu za početak"]
[null,null,null,null,null,null,null,null,"Podaci o ulaganju - Obrtna sredstva"]
[]
[]
[]
[null,"EU projekata javnog sektora",null,null,null,null,null,"Klik na ikonu za početak"]
[null,null,null,null,null,null,null,null,"Podaci o ulaganju - EU projekti"]

{"sheet":"Investicije","index":1,"n_rows":48,"n_cols":18,"rows_kept":48,"cut":false,"hidden":false,"merged":[[42,0,42,13],[42,14,42,15],[43,0,43,13],[43,14,43,15],[44,0,44,13],[44,14,44,15],[6,17,7,27],[24,0,25,2],[24,3,25,15],[28,0,29,2],[28,3,29,15],[30,0,31,2],[30,3,31,15],[15,7,15,8],[15,9,15,10],[15,11,15,12],[15,14,15,15],[16,1,16,4],[16,5,16,6],[16,7,16,8],[16,9,16,10],[16,11,16,12],[16,14,16,15],[13,1,13,4],[0,14,0,15],[2,13,2,15],[21,11,21,12],[21,14,21,15],[22,1,22,4],[22,5,22,6],[22,7,22,8],[22,9,22,10],[22,11,22,12],[22,14,22,15],[17,1,17,4],[17,5,17,6],[17,7,17,8],[17,9,17,10],[17,11,17,12],[17,14,17,15],[18,1,18,4],[18,5,18,6],[18,7,18,8],[18,9,18,10],[18,11,18,12],[18,14,18,15],[15,1,15,4],[15,5,15,6],[13,5,13,6],[13,7,13,8],[13,9,13,10],[13,11,13,12],[13,14,13,15],[14,1,14,4],[14,5,14,6],[14,7,14,8],[14,9,14,10],[14,11,14,12],[14,14,14,15],[11,1,11,4],[11,5,11,6],[11,7,11,8],[11,9,11,10],[11,11,11,12],[11,14,11,15],[12,1,12,4],[12,5,12,6],[12,7,12,8],[12,9,12,10],[12,11,12,12],[12,14,12,15],[9,1,9,4],[9,5,9,6],[9,7,9,8],[9,9,9,10],[9,11,9,12],[9,14,9,15],[10,1,10,4],[10,5,10,6],[10,7,10,8],[10,9,10,10],[10,11,10,12],[10,14,10,15],[6,5,7,6],[6,7,6,10],[6,11,6,13],[6,14,7,15],[7,7,7,8],[7,9,7,10],[7,11,7,12],[8,1,8,4],[8,5,8,6],[8,7,8,8],[8,9,8,10],[8,11,8,12],[8,14,8,15],[0,0,0,5],[41,14,41,15],[35,14,35,15],[36,14,36,15],[37,14,37,15],[38,14,38,15],[39,14,39,15],[40,14,40,15],[5,14,5,15],[6,0,7,0],[5,0,5,7],[34,14,34,15],[27,0,27,3],[19,1,19,4],[34,0,34,13],[35,0,35,13],[36,0,36,13],[37,0,37,13],[38,0,38,13],[39,0,39,13],[40,0,40,13],[41,0,41,13],[19,5,19,6],[19,7,19,8],[24,17,25,31],[28,17,29,31],[30,17,31,31],[46,0,46,4],[47,0,47,4],[47,9,47,14],[48,0,49,4],[48,9,49,14],[2,0,2,1],[2,2,2,6],[21,1,21,4],[21,5,21,6],[21,7,21,8],[19,9,19,10],[19,11,19,12],[19,14,19,15],[20,1,20,4],[20,5,20,6],[20,7,20,8],[20,9,20,10],[20,11,20,12],[20,14,20,15],[21,9,21,10],[6,1,7,4]]}
["Podaci o ulaganju - Investicijski kredit",null,null,null,null,null,null,null,null,null,null,null,"Datum izvještaja:"]
[]
["Naziv klijenta:",null,null,null,null,null,null,null,null,null,null,null,"OIB:"]
[]
["PDV uključen:"]
["Struktura investicije i izvori sredstva",null,null,null,null,null,null,null,null,null,null,null,null,null,"Iznos u kn"]
["Rb.","Namjena",null,null,null,"Ukupno",null,"Vlastita sredstva",null,null,null,"Kredit HBOR-a",null,null,"od iznosa kredita za refundaciju",null,null,"Namjena: navesti stavke ulaganja kao: osnivačka ulaganja, zemljište, nasad, građevinski objekti, oprema i uređaji i sl."]
[null,null,null,null,null,null,null,"Vlastiti izvori",null,"Ostali izvori",null,"Iznos",null,"%"]
["I.","Osnovna sredstva ukupno",null,null,null,{"$f":"SUM(F10:G20)","v":0},null,{"$f":"SUM(H10:I20)","v":0},null,{"$f":"SUM(J10:K20)","v":0},null,{"$f":"SUM(L10:M20:M20)","v":0},null,{"$f":"L9/L22","v":{"$error":"#DIV/0!"}},{"$f":"SUM(O10:P20)","v":0}]
[null,null,null,null,null,{"$f":"SUM(H10:M10)","v":0},null,null,null,null,null,null,null,"-"]
[null,null,null,null,null,{"$f":"SUM(H11:M11)","v":0},null,null,null,null,null,null,null,"-"]
[null,null,null,null,null,0,null,null,null,null,null,null,null,"-"]
[null,null,null,null,null,0,null,null,null,null,null,null,null,"-"]
[null,null,null,null,null,0,null,null,null,null,null,null,null,"-"]
[null,null,null,null,null,0,null,null,null,null,null,null,null,"-"]
[null,null,null,null,null,0,null,null,null,null,null,null,null,"-"]
[null,null,null,null,null,0,null,null,null,null,null,null,null,"-"]
[null,null,null,null,null,0,null,null,null,null,null,null,null,"-"]
[null,null,null,null,null,0,null,null,null,null,null,null,null,"-"]
[null,null,null,null,null,0,null,null,null,null,null,null,null,"-"]
["II.","Obrtna sredstva ukupno",null,null,null,{"$f":"SUM(H21:M21)","v":0},null,null,null,null,null,null,null,{"$f":"L21/L22","v":{"$error":"#DIV/0!"}}]
["III.","Sveukupno (I. + II.)",null,null,null,{"$f":"SUM(F9,F21)","v":0},null,{"$f":"SUM(H9,H21)","v":0},null,{"$f":"SUM(J9,J21)","v":0},null,{"$f":"SUM(L9,L21)","v":0},null,{"$f":"N9+N21","v":{"$error":"#DIV/0!"}},{"$f":"SUM(O9,O21)","v":0}]
["III.","Sveukupno %",null,null,null,1,null,{"$f":"H22/F22","v":{"$error":"#DIV/0!"}},null,{"$f":"J22/F22","v":{"$error":"#DIV/0!"}},null,{"$f":"L22/F22","v":{"$error":"#DIV/0!"}},null,"-",{"$f":"O22/L22","v":{"$error":"#DIV/0!"}}]
[]
["Pojašnjenja",null,null,null,null,null,null,null,null,null,null,null,null,null,null,null,null,"Pojašnjenja: Navesti ako su eventualno navedeni iznosi s PDV-om i zašto (u slučajevima kada korisnik kredita obavlja isporuku dobara ili pruža usluge koje su po Zakonu o porezu na dodanu vrijednost izuzete od obračunavanja PDV-a, a u tu svrhu se odobrava kredit HBOR-a, kao i u slučajevima kada korisnik kredita ne ostvaruje prihod dovoljan za ulazak u sustav PDV-a, HBOR može razmotriti kreditiranje predračunske vrijednosti investicije s PDV-om). Navesti eventualno druge važne napomene."]
[]
[]
["Prethodno uložena sredstva"]
["Vlastita sredstva",null,null,null,null,null,null,null,null,null,null,null,null,null,null,null,null,"Vlastita sredstva: Navesti ako postoje stavke vlastitih sredstava u strukturi investicije koje su realizirane. Za svaku stavku navesti: naziv, osnovu realizacije (ugovoreno i/ili plaćeno), iznos i datum realizacije."]
[]
["Kredit HBOR-a",null,null,null,null,null,null,null,null,null,null,null,null,null,null,null,null,"Kredit HBOR-a: Navesti ako postoje stavke ukupnog kredita u strukturi investicije koje su plaćene iz vlastitih sredstava ili se planiraju platiti prije povlačenja sredstava kredita. Za svaku stavku navesti: naziv, iznos i datum (ili planirani datum) plaćanja. Refundaciju sredstava HBOR može prihvatiti iznimno za propisane vrste ulaganja i na propisani način (Odluka o općim uvjetima kreditnog poslovanja HBOR-a, točka 5.6. Način korištenja kredita - kod izravnog kreditiranja)."]
[]
[]
["Vrsta vlastitog udjela u investiciji (označiti)",null,null,null,null,null,null,null,null,null,null,null,null,null,null,"Iznos u kn"]
["Vlastiti izvori financiranja",null,null,null,null,null,null,null,null,null,null,null,null,null,{"$f":"SUM(O36:P37)","v":0}]
["      Novčana sredstva investitora"]
["      Osnovna sredstva investitora pribavljena radi investicije"]
["Ostali izvori financiranja",null,null,null,null,null,null,null,null,null,null,null,null,null,{"$f":"SUM(O39:P44)","v":0}]
["      EU sredstva"]
["      Novčana sredstva drugih pravnih i fizičkih osoba"]
["      Kreditna sredstva drugih financijskih institucija"]
["      Ulog drugih pravnih ili fizičkih osoba (u novcu ili stvarima)"]
["      Ostalo (niže navesti što):"]
[]
["Ukupno",null,null,null,null,null,null,null,null,null,null,null,null,null,{"$f":"O35+O38","v":0}]
[]
["Klijent"]
["Mjesto i datum",null,null,null,null,null,null,null,null,"Ime i prezime ovlaštene osobe i potpis"]

{"sheet":"EU projekti","index":2,"n_rows":67,"n_cols":14,"rows_kept":67,"cut":false,"hidden":false,"merged":[[52,10,52,11],[57,10,57,11],[61,10,61,11],[62,10,62,11],[63,10,63,11],[43,13,45,25],[47,13,48,25],[49,13,51,25],[53,0,53,9],[54,0,54,9],[55,0,55,9],[56,0,56,9],[57,0,57,9],[58,0,58,9],[59,0,59,9],[60,0,60,9],[61,0,61,9],[62,0,62,9],[63,0,63,9],[60,10,60,11],[56,10,56,11],[13,10,13,11],[47,0,48,2],[49,0,50,2],[43,0,44,2],[43,3,44,11],[47,3,48,11],[49,3,50,11],[14,0,15,0],[14,1,15,3],[14,4,15,5],[14,6,15,7],[14,8,15,9],[14,10,15,11],[13,0,13,3],[18,1,18,3],[18,4,18,5],[18,6,18,7],[18,8,18,9],[18,10,18,11],[16,1,16,3],[16,4,16,5],[16,6,16,7],[16,8,16,9],[16,10,16,11],[17,1,17,3],[17,4,17,5],[17,6,17,7],[17,8,17,9],[17,10,17,11],[19,1,19,3],[19,4,19,5],[19,6,19,7],[19,8,19,9],[19,10,19,11],[23,6,23,7],[23,8,23,9],[23,10,23,11],[20,1,20,3],[20,4,20,5],[20,6,20,7],[20,8,20,9],[20,10,20,11],[21,1,21,3],[21,4,21,5],[21,6,21,7],[21,8,21,9],[21,10,21,11],[22,8,22,9],[22,10,22,11],[40,1,40,9],[33,10,33,11],[34,10,34,11],[35,10,35,11],[36,10,36,11],[35,1,35,9],[36,1,36,9],[26,10,26,11],[27,1,27,3],[27,4,27,5],[27,6,27,7],[27,8,27,9],[27,10,27,11],[30,1,30,3],[30,4,30,5],[30,6,30,7],[30,8,30,9],[30,10,30,11],[32,10,32,11],[32,0,32,9],[38,1,38,9],[39,1,39,9],[29,1,29,3],[25,8,25,9],[25,10,25,11],[26,1,26,3],[26,4,26,5],[24,6,24,7],[6,1,6,9],[7,1,7,9],[9,1,9,9],[10,1,10,9],[11,1,11,9],[26,6,26,7],[26,8,26,9],[24,1,24,3],[24,4,24,5],[24,8,24,9],[24,10,24,11],[25,1,25,3],[25,4,25,5],[25,6,25,7],[22,1,22,3],[22,4,22,5],[22,6,22,7],[23,1,23,3],[23,4,23,5],[0,8,0,9],[0,10,0,11],[2,0,2,1],[2,2,2,6],[2,9,2,11],[0,0,0,5],[33,1,33,9],[34,1,34,9],[28,1,28,3],[28,4,28,5],[28,6,28,7],[28,8,28,9],[28,10,28,11],[9,10,9,11],[10,10,10,11],[11,10,11,11],[5,1,5,9],[4,0,4,9],[4,10,4,11],[5,10,5,11],[6,10,6,11],[7,10,7,11],[8,10,8,11],[8,1,8,9],[10,13,10,27],[29,13,29,26],[65,0,65,4],[66,0,66,4],[67,0,68,4],[66,6,66,11],[14,13,15,23],[41,0,41,9],[46,0,46,3],[37,10,37,11],[38,10,38,11],[39,10,39,11],[40,10,40,11],[41,10,41,11],[29,4,29,5],[29,6,29,7],[29,8,29,9],[29,10,29,11],[58,10,58,11],[59,10,59,11],[37,1,37,9],[53,10,53,11],[54,10,54,11],[55,10,55,11]]}
["Podaci o ulaganju - EU projekti",null,null,null,null,null,null,null,"Datum izvještaja:"]
[]
["Naziv klijenta:",null,null,null,null,null,null,null,"OIB:"]
[]
["Kredit HBOR-a i prihvatljivi iznos granta za HBOR",null,null,null,null,null,null,null,null,null,"Iznos u kn"]
["A.","Ukupni iznos projekta (prihvatljivi i neprihvatljivi troškovi)"]
["B.","Vlastita sredstva u investiciji (ne uključuje grant)"]
["C.","Prihvatljivi troškovi (sukladno prijavi ili odluci provedbenog tijela)"]
["D.","Neprihvatljivi troškovi"]
["E.","Predviđeni iznos granta"]
["F.","Prihvatljivi iznos granta za HBOR (max. Do 70%)1",null,null,null,null,null,null,null,null,null,null,null,"Prihvatljivi iznos granta za HBOR: u slučaju jednokrtne isplate granta nije moguće prihvatiti izračun granta iz točke F."]
["G.","Potrebno financirati kreditom (A. - B. - F.)",null,null,null,null,null,null,null,null,{"$f":"K6-K7-K11","v":0}]
[]
["Struktura investicije i izvori sredstva",null,null,null,null,null,null,null,null,null,"Iznos u kn"]
["Rb.","Namjena",null,null,"Iznosi ulaganja",null,"Prihvatljivi troškovi",null,"Postotak potpore u %",null,"Iznos granta",null,null,"Namjena: navesti stavke ulaganja kao: osnivačka ulaganja, zemljište, nasad, građevinski objekti, oprema i uređaji i sl."]
[]
["I.","Osnovna sredstva ukupno",null,null,{"$f":"SUM(E18:F29)","v":0},null,{"$f":"SUM(G18:H29)","v":0},null,{"$f":"+K17/G17","v":{"$error":"#DIV/0!"}},null,{"$f":"SUM(K18:L29)","v":0}]
[null,null,null,null,null,null,null,null,{"$f":"+K18/G18","v":{"$error":"#DIV/0!"}}]
[null,null,null,null,null,null,null,null,{"$error":"#DIV/0!"}]
[null,null,null,null,null,null,null,null,{"$error":"#DIV/0!"}]
[null,null,null,null,null,null,null,null,{"$error":"#DIV/0!"}]
[null,null,null,null,null,null,null,null,{"$error":"#DIV/0!"}]
[null,null,null,null,null,null,null,null,{"$error":"#DIV/0!"}]
[null,null,null,null,null,null,null,null,{"$error":"#DIV/0!"}]
[null,null,null,null,null,null,null,null,{"$error":"#DIV/0!"}]
[null,null,null,null,null,null,null,null,{"$error":"#DIV/0!"}]
[null,null,null,null,null,null,null,null,{"$error":"#DIV/0!"}]
[null,null,null,null,null,null,null,null,{"$error":"#DIV/0!"}]
[null,null,null,null,null,null,null,null,{"$error":"#DIV/0!"}]
["II.","Obrtna sredstva",null,null,null,null,null,null,{"$error":"#DIV/0!"},null,null,null,null,"Obrtna sredstva: u izračun se ne uzimaju prihvatljivi izdaci koji su po svojoj naravi dio obrtnih sredstava."]
["III.","Sveukupno (I. + II.)",null,null,{"$f":"E17+E30","v":0},null,{"$f":"G17+G30","v":0},null,{"$error":"#DIV/0!"},null,{"$f":"K17+K30","v":0}]
[]
["Plan izvora financiranja",null,null,null,null,null,null,null,null,null,"Iznos u kn"]
["1. ","Vlastita sredstva (niže navesti namjenu):"]
[]
["2.","Kredit HBOR-a",null,null,null,null,null,null,null,null,{"$f":"K37+K38","v":0}]
[null,"- troškovi projekta"]
[null,"- obrtna sredstva"]
["3.","Grant",null,null,null,null,null,null,null,null,{"$f":"+K40+K41","v":0}]
[null,"- predujam"]
[null,"- rate"]
["Ukupno (1. + 2. + 3.)",null,null,null,null,null,null,null,null,null,{"$f":"K34+K36+K39","v":0}]
[]
["Pojašnjenja",null,null,null,null,null,null,null,null,null,null,null,null,"Pojašnjenja: navesti ako su eventualno navedeni iznosi s PDV-om i zašto (u slučajevima kada korisnik kredita obavlja isporuku dobara ili pruža usluge koje su po Zakonu o porezu na dodanu vrijednost izuzete od obračunavanja PDV-a, a u tu svrhu se odobrava kredit HBOR-a, kao i u slučajevima kada korisnik kredita ne ostvaruje prihod dovoljan za ulazak u sustav PDV-a, HBOR može razmotriti kreditiranje predračunske vrijednosti investicije s PDV-om). Navesti eventualno druge važne napomene."]
[]
[]
["Prethodno uložena sredstva"]
["Vlastita sredstva",null,null,null,null,null,null,null,null,null,null,null,null,"Vlastita sredstva: Navesti ako postoje stavke vlastitih sredstava u strukturi investicije koje su realizirane. Za svaku stavku navesti: naziv, osnovu realizacije (ugovoreno i/ili plaćeno), iznos i datum realizacije."]
[]
["Kredit HBOR-a",null,null,null,null,null,null,null,null,null,null,null,null,"Kredit HBOR-a: Navesti ako postoje stavke ukupnog kredita u strukturi investicije koje su plaćene iz vlastitih sredstava ili se planiraju platiti prije povlačenja sredstava kredita. Za svaku stavku navesti: naziv, iznos i datum (ili planirani datum) plaćanja. Refundaciju sredstava HBOR može prihvatiti iznimno za propisane vrste ulaganja i na propisani način (Odluka o općim uvjetima kreditnog poslovanja HBOR-a, točka 5.6. Način korištenja kredita - kod izravnog kreditiranja)."]
[]
[]
["Vrsta vlastitog udjela u investiciji (označiti)",null,null,null,null,null,null,null,null,null,"Iznos u kn"]
["Vlastiti izvori financiranja",null,null,null,null,null,null,null,null,null,{"$f":"SUM(K55:L56)","v":0}]
["      Novčana sredstva investitora"]
["      Osnovna sredstva investitora pribavljena radi investicije"]
["Ostali izvori financiranja",null,null,null,null,null,null,null,null,null,{"$f":"SUM(K58:L63)","v":0}]
["      EU sredstva"]
["      Novčana sredstva drugih pravnih i fizičkih osoba"]
["      Kreditna sredstva drugih financijskih institucija"]
["      Ulog drugih pravnih ili fizičkih osoba (u novcu ili stvarima)"]
["      Ostalo (niže navesti što):"]
[]
["Ukupno",null,null,null,null,null,null,null,null,null,{"$f":"K54+K57","v":0}]
[]
["Klijent"]
["Mjesto i datum",null,null,null,null,null,"Ime i prezime ovlaštene osobe i potpis"]

{"sheet":"Obrtna sredstva","index":3,"n_rows":25,"n_cols":14,"rows_kept":25,"cut":false,"hidden":false,"merged":[[4,13,6,24],[21,1,21,8],[10,0,10,9],[11,1,11,8],[12,1,12,8],[13,1,13,8],[14,1,14,8],[18,1,18,8],[19,1,19,8],[20,1,20,8],[17,1,17,8],[16,1,16,8],[20,9,20,11],[21,9,21,11],[11,9,11,11],[12,9,12,11],[4,9,4,11],[0,8,0,9],[0,10,0,11],[2,0,2,1],[2,2,2,6],[2,9,2,11],[4,0,4,4],[13,9,13,11],[14,9,14,11],[15,9,15,11],[10,10,10,11],[9,1,9,3],[9,4,9,5],[9,6,9,7],[9,8,9,9],[9,10,9,11],[8,9,8,11],[7,9,7,11],[5,1,5,8],[6,1,6,8],[7,1,7,8],[8,1,8,8],[5,9,5,11],[6,9,6,11],[23,0,23,4],[24,0,24,4],[24,6,24,11],[25,0,26,4],[15,1,15,8],[16,9,16,11],[22,1,22,3],[22,4,22,5],[22,6,22,7],[22,8,22,9],[22,10,22,11],[17,9,17,11],[18,9,18,11],[19,9,19,11]]}
["Podaci o ulaganju - Obrtna sredstva",null,null,null,null,null,null,null,"Datum izvještaja:"]
[]
["Naziv klijenta:",null,null,null,null,null,null,null,"OIB:"]
[]
["Proračun potrebnih obrtnih sredstava",null,null,null,null,null,null,null,null,"Iznos u kn",null,null,null,"Proračun potrebnih obrtnih sredstava: za podnositelje zahtjeva u djelatnostima proizvodnje i/ili izvoza. Vrijeme vezivanja obrtnih sredstava u proizvodnji (prosječan broj dana vezivanja) podrazumijeva prosječno vrijeme proizvodnje (na temelju zaliha materijala, zaliha nedovšrene proizvodnje i zaliha gotovih proizvoda), isporuke i naplate (na temelju potpisanih ugovora, narudžbi).\n"]
["1.","Planirana vrijednost prihoda od proizvodnje i/ili izvoza za tekuću godinu"]
["2.","PBDV - prosječan broj dana vezivanja"]
["3.","KO - Koeficijent obrtaja (KO=365/PBDV)",null,null,null,null,null,null,null,{"$f":"365/J7","v":{"$error":"#DIV/0!"}}]
["4.","OBS - Potrebna obrtna sredstva (OBS=Planirana vrijednost prihoda/KO)",null,null,null,null,null,null,null,{"$f":"J6/J8","v":{"$error":"#DIV/0!"}}]
[]
["Specifikacija namjene ulaganja/kredita"]
["RB","Stavka",null,null,null,null,null,null,null,"Iznos u kn"]
[]
[]
[]
[]
[]
[]
[]
[]
[]
[null,"Ukupno:",null,null,null,null,null,null,null,{"$f":"SUM(J13:L21)","v":0}]
[]
["Klijent"]
["Mjesto i datum",null,null,null,null,null,"Ime i prezime ovlaštene osobe i potpis"]